bitfinex/quotes_ETHUSD_20241013
["timestamp","ask_amount","ask_price","bid_price","bid_amount"]
[1728833658555,6.2295,2445.3,2445.0,8.1797]
[1728833658718,6.52567373,2445.1,2445.0,4.08984]
[1728833659529,6.58064012,2445.1,2445.0,4.08984]
[1728833660375,9.56065413,2445.1,2445.0,4.08984]
[1728833661015,6.58064012,2445.1,2445.0,4.08984]
[1728833661427,3.05496639,2445.1,2445.0,4.87174]
[1728833662481,6.58064012,2445.1,2445.0,4.87174]
[1728833662713,3.05496639,2445.1,2445.0,4.08984]
[1728833663428,6.58064012,2445.1,2445.0,4.08984]
[1728833663929,0.05496639,2445.1,2445.0,4.08984]
[1728833664227,0.05496639,2445.1,2445.0,5.772547]
[1728833664631,3.52567373,2445.5,2445.4,4.08931]
[1728833664837,7.31,2445.7,2445.6,4.08894]
[1728833664838,3.52567373,2445.7,2445.6,4.08894]
[1728833665129,3.52567373,2446.1,2446.0,4.08828]
[1728833665986,3.52567373,2446.3,2446.2,4.08797]
[1728833666201,3.52567373,2446.5,2446.4,4.08763]
[1728833666600,4.09152925,2446.5,2446.4,4.08763]
[1728833667447,3.52567373,2446.5,2446.4,4.08763]
[1728833668814,6.52567373,2446.5,2446.4,4.08763]
[1728833669442,6.52567373,2446.5,2446.4,4.87373]
[1728833669753,3.52567373,2446.7,2446.4,4.87373]
[1728833669954,6.52567373,2446.7,2446.6,4.0873]
[1728833671167,6.58126783,2446.7,2446.6,4.0873]
[1728833674473,7.37755435,2446.7,2446.6,4.0873]
[1728833674682,6.58126783,2446.7,2446.6,4.0873]
[1728833678480,0.0555941,2446.7,2446.6,4.8483]
[1728833678971,2.15839738,2447.6,2447.3,4.08612]
[1728833679183,0.52865451,2447.5,2447.3,4.08612]
[1728833679334,1.43836014,2447.5,2447.1,4.08634]
[1728833679532,3.52567373,2447.2,2446.9,4.08666]
[1728833679766,0.7768,2447.1,2447.0,4.08662]
[1728833679983,29.81033743,2447.1,2446.9,4.08666]
[1728833680181,5.461,2447.0,2446.9,4.08666]
[1728833680481,5.51798627,2447.0,2446.9,4.08666]
[1728833682242,5.461,2446.8,2446.2,0.761]
[1728833682607,5.461,2446.8,2446.7,4.08713]
[1728833682738,25.451,2446.8,2446.7,4.08713]
[1728833684430,26.51567373,2446.8,2446.7,4.08713]
[1728833686208,26.57243648,2446.8,2446.7,4.08713]
[1728833687720,6.58243648,2446.8,2446.7,4.08713]
[1728833692490,6.58243648,2446.8,2446.7,5.66887]
[1728833692491,0.05676275,2446.8,2446.7,5.66887]
[1728833693018,10.83567373,2447.2,2447.1,4.08646]
[1728833693615,3.52567373,2447.2,2447.1,4.08646]
[1728833694623,6.52567373,2447.2,2447.1,4.08646]
[1728833696075,7.05432824,2447.2,2447.1,4.08646]
[1728833696749,7.05432824,2447.2,2447.1,4.85356]
[1728833696936,6.52567373,2447.2,2447.1,4.08646]
[1728833697855,8.98667373,2447.2,2447.1,4.08646]
[1728833698060,10.9708311,2447.2,2447.1,4.08646]
[1728833698661,8.98667373,2447.2,2447.1,4.08646]
[1728833698846,6.52567373,2447.2,2447.1,4.08646]
[1728833701227,6.58300604,2447.2,2447.1,4.85356]
[1728833701662,6.58300604,2447.2,2447.1,4.08646]
[1728833705716,0.05733231,2447.2,2447.1,4.08646]
[1728833706007,0.05733231,2447.2,2447.1,5.747576]
[1728833706155,0.4099,2447.3,2447.2,4.0863]
[1728833707163,3.4099,2447.3,2447.2,4.0863]
[1728833707366,4.2083,2447.3,2447.2,4.0863]
[1728833707573,5.06124287,2447.3,2447.2,4.0863]
[1728833707787,5.06124287,2447.3,2447.1,4.08645]
[1728833707788,8.7967893,2447.3,2447.1,4.08645]
[1728833707995,6.52567373,2447.2,2447.1,8.17282]
[1728833708787,6.52567373,2447.2,2447.1,4.08637]
[1728833708986,7.3786166,2447.2,2447.1,4.08637]
[1728833710015,3.0,2447.1,2446.8,0.7671]
[1728833710175,6.2594,2446.9,2446.6,8.17447]
[1728833710376,3.0,2446.7,2446.6,4.0872]
[1728833710824,3.85201294,2446.7,2446.5,4.08745]
[1728833711026,3.52567373,2446.6,2446.5,4.08745]
[1728833711321,6.52567373,2446.6,2446.5,4.08745]
[1728833711565,7.37768667,2446.6,2446.5,4.08745]
[1728833711706,7.37768667,2446.6,2446.4,8.17505]
[1728833712019,3.0,2446.5,2446.4,4.08751]
[1728833714895,3.85201294,2446.5,2446.4,4.08751]
[1728833716313,3.90730941,2446.5,2446.4,4.08751]
[1728833717425,0.05529647,2446.5,2446.4,4.87201]
[1728833718232,0.05529647,2446.5,2446.4,4.08751]
[1728833718527,3.85201294,2446.5,2446.4,4.08751]
[1728833718724,4.85372204,2446.5,2446.3,4.08777]
[1728833718930,4.85372204,2446.5,2445.9,4.08838]
[1728833718931,3.8078,2446.3,2446.1,4.08805]
[1728833719088,7.37915512,2446.2,2446.1,4.08805]
[1728833719291,6.5808331,2446.2,2446.1,4.08805]
[1728833719514,7.43417455,2446.2,2446.1,4.08805]
[1728833719726,6.5808331,2446.2,2446.1,4.08805]
[1728833720217,7.86105519,2446.2,2446.1,4.08805]
[1728833721443,6.5808331,2446.2,2446.1,4.08805]
[1728833721584,0.05515937,2446.2,2446.1,4.08805]
[1728833721793,0.90800635,2446.2,2446.1,4.08805]
[1728833721991,0.85284698,2446.2,2446.1,4.08805]
[1728833722226,0.90773205,2446.2,2446.1,4.08805]
[1728833723205,0.05488507,2446.2,2446.1,4.08805]
[1728833723606,3.85284698,2446.3,2446.2,4.08797]
[1728833724245,3.85314082,2446.3,2446.2,4.08797]
[1728833726443,3.0,2446.3,2446.2,4.87247]
[1728833726814,3.0,2446.3,2446.2,4.08797]
[1728833727753,3.85314082,2446.3,2446.2,4.08797]
[1728833727909,0.8078,2446.2,2446.1,4.08799]
[1728833728109,3.0,2446.1,2446.0,4.0883]
[1728833728308,7.80538897,2446.1,2446.0,4.0883]
[1728833728645,7.37863436,2446.1,2446.0,4.0883]
[1728833728818,6.52567373,2446.1,2446.0,4.0883]
[1728833729030,7.37863401,2446.1,2446.0,4.0883]
[1728833729351,7.80538897,2446.1,2446.0,4.0883]
[1728833730201,6.52567373,2446.1,2446.0,4.0883]
[1728833730404,7.37839932,2446.1,2446.0,4.0883]
[1728833731343,7.43331326,2446.1,2446.0,4.0883]
[1728833731920,7.50967604,2446.1,2446.0,4.0883]
[1728833732513,9.96967604,2446.1,2446.0,4.0883]
[1728833732759,9.96967604,2446.1,2445.8,4.0886]
[1728833732760,11.28658553,2446.1,2445.8,4.0886]
[1728833733047,11.28658553,2446.1,2445.6,0.7845]
[1728833733048,3.0,2445.8,2445.7,4.0888]
[1728833733342,26.64676272,2445.8,2445.7,4.0888]
[1728833735049,23.12108899,2445.8,2445.7,4.0888]
[1728833735259,26.64676272,2445.8,2445.7,4.0888]
[1728833737248,27.44306272,2445.8,2445.7,4.0888]
[1728833737548,30.10773899,2445.8,2445.7,4.0888]
[1728833738811,29.31143899,2445.8,2445.7,4.0888]
[1728833739013,26.64676272,2445.8,2445.7,4.0888]
[1728833741614,26.64676272,2445.8,2445.7,4.8854]
[1728833742179,29.90306272,2445.8,2445.6,8.17775]
[1728833742320,29.90306272,2445.8,2445.6,4.08886]
[1728833742676,29.90306272,2445.8,2445.7,4.0888]
[1728833742827,32.97864155,2445.8,2445.6,4.08886]
[1728833743948,25.45,2445.7,2445.6,4.08886]
[1728833744349,25.58011421,2445.7,2445.6,4.08886]
[1728833745683,5.46,2445.6,2445.4,4.08918]
[1728833745823,5.46,2445.6,2444.0,1.28604689]
[1728833745824,8.98567373,2445.5,2445.2,4.08955]
[1728833746023,8.98567373,2445.3,2445.2,4.08955]
[1728833746578,9.11546287,2445.3,2445.2,4.08955]
[1728833748570,5.58978914,2445.3,2445.2,4.88615]
[1728833749370,0.12978914,2445.3,2445.2,5.783745]
[1728833749879,5.98567373,2445.7,2445.6,4.08897]
[1728833750974,8.98567373,2445.7,2445.6,4.08897]
[1728833752580,8.98567373,2445.7,2445.6,4.84677]
[1728833752796,10.62272559,2446.0,2445.8,4.08864]
[1728833752970,4.80538897,2446.1,2446.0,4.0883]
[1728833752971,3.52567373,2446.1,2446.0,4.0883]
[1728833754289,6.52567373,2446.1,2446.0,4.8461]
[1728833756363,4.37839932,2446.3,2446.2,4.08797]
[1728833756551,6.52567373,2446.3,2446.2,4.08797]
[1728833758748,3.0,2446.3,2446.2,4.08797]
[1728833759002,4.78829932,2446.5,2446.4,4.08763]
[1728833759306,3.93557373,2446.5,2446.4,4.08763]
[1728833760087,8.60419932,2446.5,2446.4,4.08763]
[1728833760264,9.03118897,2446.5,2446.4,4.08763]
[1728833760486,10.19988426,2446.5,2446.4,4.08763]
[1728833760683,3.0,2446.4,2446.3,8.17551]
[1728833761091,3.98287191,2446.4,2446.3,8.17551]
[1728833761411,3.13065585,2446.4,2446.3,8.17551]
[1728833761639,6.0590901,2446.4,2446.1,4.08801]
[1728833761790,0.8159,2446.1,2446.0,4.08829]
[1728833762108,3.94649808,2446.1,2446.0,4.08829]
[1728833762412,5.22460659,2446.1,2446.0,4.08829]
[1728833762719,26.35959137,2446.1,2446.0,4.0883]
[1728833763227,25.54369137,2446.1,2446.0,4.0883]
[1728833763381,23.12059808,2446.1,2446.0,4.0883]
[1728833763888,24.39879845,2446.1,2446.0,4.0883]
[1728833764097,23.12059808,2446.1,2446.0,4.0883]
[1728833764303,24.39879845,2446.1,2446.0,4.0883]
[1728833767080,23.97330372,2446.1,2446.0,4.0883]
[1728833767327,20.97329403,2446.1,2446.0,4.985074]
[1728833767484,0.13059808,2446.1,2446.0,5.776074]
[1728833768241,0.85269595,2446.4,2446.3,0.791]
[1728833768531,3.52567373,2446.8,2446.7,4.08713]
[1728833768705,4.6092411,2446.8,2446.7,4.08713]
[1728833769547,8.83191068,2446.8,2446.7,4.08713]
[1728833769836,10.20834331,2446.8,2446.7,4.08713]
[1728833770392,3.0,2446.5,2446.4,4.08753]
[1728833770599,9.45303946,2446.5,2446.4,4.08753]
[1728833771009,11.91303946,2446.5,2446.2,4.08782]
[1728833771210,7.80432535,2446.3,2446.2,4.08782]
[1728833771538,3.0,2446.2,2446.1,4.08814]
[1728833771692,7.55455162,2446.2,2445.9,4.08847]
[1728833771890,3.85237395,2446.0,2445.9,4.08847]
[1728833772488,3.0,2446.0,2445.9,4.08847]
[1728833772693,3.8525057,2446.0,2445.9,4.08847]
[1728833776148,3.98329872,2446.0,2445.9,4.08847]
[1728833776436,4.40944464,2446.0,2445.9,4.08847]
[1728833777044,0.98332,2446.0,2445.9,4.08847]
[1728833777342,0.98327235,2446.0,2445.9,5.656271]
[1728833777493,0.13079302,2446.0,2445.9,5.656271]
[1728833777895,0.85247933,2446.3,2446.2,4.08797]
[1728833778096,0.98284633,2446.3,2446.2,4.83807]
[1728833778334,4.50852006,2446.3,2446.2,5.730688]
[1728833778507,0.130367,2446.3,2446.2,5.730688]
[1728833779599,0.85247933,2446.5,2446.4,4.08763]
[1728833781647,4.37815306,2446.5,2446.4,4.08763]
[1728833781839,7.37815306,2446.5,2446.4,4.08763]
[1728833782635,6.52567373,2446.5,2446.4,4.08763]
[1728833783044,3.85247933,2446.6,2446.5,4.08747]
[1728833783245,3.0,2446.6,2446.5,4.08747]
[1728833785151,3.85247933,2446.8,2446.7,4.08713]
[1728833786546,3.0,2446.8,2446.7,4.08713]
[1728833787137,3.85247933,2446.8,2446.7,4.08713]
[1728833791159,3.98391488,2446.8,2446.7,4.08713]
[1728833793360,3.13143555,2446.8,2446.7,4.08713]
[1728833793516,3.9840519,2446.8,2446.7,4.08713]
[1728833794463,4.41008717,2446.8,2446.7,4.08713]
[1728833796456,4.35449777,2446.8,2446.7,4.08713]
[1728833797256,6.05944902,2446.8,2446.7,4.08713]
[1728833797634,4.410974,2446.8,2446.7,4.08713]
[1728833798250,4.35468365,2446.8,2446.7,4.08713]
[1728833798754,4.41097587,2446.8,2446.7,4.85793]
[1728833799050,1.41097587,2446.8,2446.7,4.85793]
[1728833799236,0.13143555,2446.8,2446.7,4.85793]
[1728833799821,0.98457349,2446.8,2446.7,4.85793]
[1728833800021,0.98457349,2446.8,2446.7,5.75245]
[1728833800243,0.13143555,2446.8,2446.7,5.75245]
[1728833803600,3.85313794,2447.0,2446.9,4.0868]
[1728833805986,3.9850209,2447.0,2446.9,4.0868]
[1728833808568,3.13188296,2447.0,2446.9,4.0868]
[1728833809063,3.9850209,2447.0,2446.9,5.389966]
[1728833809262,0.13188296,2447.0,2446.9,5.389966]
[1728833810072,3.85313794,2447.2,2446.9,1.303166]
[1728833810271,3.85313794,2447.2,2447.1,4.08646]
[1728833810484,3.85313794,2447.2,2447.1,4.85726]
[1728833811579,3.85313794,2447.2,2447.1,4.08646]
[1728833812513,4.27954032,2447.2,2447.1,4.08646]
[1728833812865,0.7995,2447.1,2447.0,4.0866]
[1728833813066,8.17718462,2447.1,2447.0,4.0866]
[1728833816195,7.37768462,2447.1,2447.0,4.0866]
[1728833818420,3.52567373,2447.1,2447.0,4.0866]
[1728833818626,7.37768462,2447.1,2447.0,4.0866]
[1728833821130,0.98416084,2447.1,2447.0,4.9161]
[1728833822647,0.13214995,2447.1,2447.0,4.9161]
[1728833823273,0.13214995,2447.1,2447.0,5.816389]
[1728833828747,0.85304956,2447.3,2447.2,4.0863]
[1728833829822,2.3719614,2447.3,2447.2,4.0863]
[1728833830009,2.37201777,2447.3,2447.2,4.0863]
[1728833830551,1.51891184,2447.3,2447.2,4.0863]
[1728833831052,7.317364,2447.3,2447.2,4.0863]
[1728833831865,7.80649641,2447.3,2447.2,4.0863]
[1728833832215,7.7697128,2447.3,2447.2,4.0863]
[1728833833149,7.80747092,2447.3,2447.2,4.0863]
[1728833833589,7.76987197,2447.3,2447.2,4.0863]
[1728833833850,3.0,2447.2,2447.1,4.08637]
[1728833834046,5.94786713,2447.2,2447.1,4.08637]
[1728833834214,4.24291588,2447.2,2447.1,4.08637]
[1728833834608,5.94786713,2447.2,2447.1,4.08637]
[1728833834914,4.24291588,2447.2,2447.1,4.08637]
[1728833835113,5.94786713,2447.2,2447.1,4.08637]
[1728833836170,6.08022627,2447.2,2447.1,4.08637]
[1728833837569,4.4132719,2447.2,2447.1,4.08637]
[1728833837974,3.13235914,2447.2,2447.1,5.70877]
[1728833838275,3.98638369,2447.2,2447.1,5.70877]
[1728833838431,0.98638369,2447.2,2447.1,5.70877]
[1728833839227,0.13235914,2447.2,2447.1,5.70877]
[1728833839440,0.85402455,2447.3,2447.1,5.70877]
[1728833839654,0.85402455,2447.3,2447.2,5.06584]
[1728833840055,7.80786885,2447.3,2447.2,4.0863]
[1728833841965,4.28091276,2447.3,2447.2,4.0863]
[1728833842270,1.28091276,2447.3,2447.2,4.0863]
[1728833842862,7.80786885,2447.3,2447.2,4.0863]
[1728833843026,4.28091276,2447.3,2447.2,4.0863]
[1728833845277,0.85462247,2447.3,2447.2,4.8914]
[1728833845485,4.28091276,2447.4,2447.3,4.08613]
[1728833847642,1.28091276,2447.4,2447.3,4.08613]
[1728833847889,0.85468042,2447.4,2447.3,4.08613]
[1728833848995,0.85468042,2447.5,2447.4,4.08596]
[1728833851112,0.9872776,2447.5,2447.4,4.08596]
[1728833851614,0.9872776,2447.5,2447.4,5.392309]
[1728833853763,2.50572862,2447.5,2447.4,5.392309]
[1728833853987,5.50572862,2447.5,2447.4,5.392309]
[1728833855693,3.9872776,2447.5,2447.4,5.392309]
[1728833855893,4.6510482,2447.5,2447.2,0.8051]
[1728833856110,4.6510482,2447.5,2447.3,4.08601]
[1728833856111,3.9872776,2447.5,2447.3,4.08601]
[1728833856274,3.13259718,2447.5,2447.3,4.08601]
[1728833856488,3.13259718,2447.5,2447.2,4.89133]
[1728833856811,3.13259718,2447.5,2447.2,0.8051]
[1728833857368,4.6510482,2447.5,2447.2,0.8051]
[1728833858008,0.13259718,2447.5,2447.2,0.8051]
[1728833858211,0.13259718,2447.5,2447.3,0.2323551]
[1728833858380,0.13259718,2447.5,2447.2,0.8051]
[1728833858578,3.13259718,2447.5,2447.2,0.8051]
[1728833858984,1.51845102,2447.4,2447.2,0.8051]
[1728833859187,1.51845102,2447.3,2447.2,0.8051]
[1728833859418,0.12831032,2447.3,2447.2,0.8051]
[1728833862550,1.64676134,2447.3,2447.2,0.8051]
[1728833862704,1.64676134,2447.3,2447.0,0.8248]
[1728833862705,1.51845102,2447.3,2447.0,0.8248]
[1728833863035,1.51845102,2447.2,2447.0,0.8248]
[1728833863439,0.12858438,2447.1,2447.0,0.8248]
[1728833865297,2.37313144,2447.3,2447.0,0.8248]
[1728833865298,0.85468042,2447.3,2447.0,0.8248]
[1728833865636,1.70495125,2447.6,2447.0,0.8248]
[1728833865637,2.37313144,2447.4,2447.0,0.8248]
[1728833865845,0.12857718,2447.3,2447.0,1.08976457]
[1728833866221,4.6470282,2447.3,2447.0,1.08976457]
[1728833866422,4.6470282,2447.3,2447.0,0.8248]
[1728833866932,3.12857718,2447.3,2447.0,0.8248]
[1728833867143,3.9832576,2447.3,2447.0,0.8248]
[1728833869062,3.0,2447.2,2447.0,0.8248]
[1728833869228,0.1285339,2447.1,2447.0,0.8248]
[1728833869909,3.85468042,2447.3,2447.0,0.8248]
[1728833870112,1.64698492,2447.1,2446.8,0.8248]
[1728833870340,4.51845102,2447.1,2446.8,0.8248]
[1728833870539,0.12849065,2447.0,2446.8,0.8248]
[1728833871145,1.64694167,2447.0,2446.8,0.8248]
[1728833871349,4.51845102,2446.9,2446.6,0.8248]
[1728833871551,1.51845102,2446.9,2446.6,0.8248]
[1728833871717,0.12826706,2446.8,2446.6,0.8248]
[1728833871919,1.51845102,2446.7,2446.4,1.12672231]
[1728833872123,1.51845102,2446.7,2446.4,0.8202]
[1728833872337,0.12815166,2446.6,2446.4,0.8202]
[1728833873536,5.37313144,2446.9,2446.5,0.30603712]
[1728833873732,5.37313144,2446.9,2446.5,0.2338651]
[1728833873935,0.85468042,2446.9,2446.5,0.2338651]
[1728833874130,0.85468042,2446.9,2446.4,0.8202]
[1728833874375,0.85468042,2447.0,2446.4,0.8202]
[1728833875252,0.85468042,2447.0,2446.3,0.30655976]
[1728833875253,0.85468042,2447.1,2446.5,1.12675976]
[1728833875437,0.85468042,2447.1,2446.6,0.8202]
[1728833877175,0.85468042,2447.2,2446.6,0.8202]
[1728833877734,0.85468042,2447.3,2446.7,0.55]
[1728833877972,0.85468042,2447.3,2446.8,0.8136]
[1728833879835,3.85468042,2447.4,2446.8,0.8136]
[1728833880052,0.85468042,2447.4,2446.8,0.8136]
[1728833880429,0.85468042,2447.4,2446.9,0.8136]
[1728833881135,0.12838247,2447.3,2446.9,0.8136]
[1728833883588,0.12838247,2447.3,2447.0,0.8136]
[1728833886474,0.85468042,2447.5,2447.0,0.8136]
[1728833886674,0.12856997,2447.2,2447.0,0.8136]
[1728833886879,0.85468042,2447.5,2447.0,0.8136]
[1728833887081,3.98325039,2447.4,2447.0,0.8136]
[1728833887288,0.98325039,2447.4,2447.0,0.8136]
[1728833887784,1.80845039,2447.4,2447.0,0.8136]
[1728833889082,0.98325039,2447.4,2447.0,0.8136]
[1728833889566,0.12856997,2447.4,2447.0,0.8136]
[1728833890638,0.98325039,2447.4,2447.0,0.8136]
[1728833890943,0.12856997,2447.4,2447.0,0.8136]
[1728833892158,0.12856997,2447.4,2447.0,1.12008206]
[1728833892311,0.12856997,2447.4,2447.0,0.8136]
[1728833895210,0.12856997,2447.4,2447.3,1.3476]
[1728833895426,0.12856997,2447.4,2447.3,2.3146188]
[1728833895588,1.90281225,2448.0,2447.4,0.7976]
[1728833895589,0.197861,2448.0,2447.4,0.7976]
[1728833895769,0.197861,2448.0,2447.7,1.51733828]
[1728833895993,0.197861,2448.0,2447.9,0.7976]
[1728833896919,0.197861,2448.0,2447.9,0.8792778]
[1728833897213,0.197861,2448.0,2447.9,1.11893941]
[1728833897717,0.197861,2448.0,2447.9,0.7976]
[1728833903826,0.197861,2448.0,2447.4,0.8231]
[1728833904773,3.8312,2447.9,2447.4,0.8231]
[1728833906706,4.68588042,2447.9,2447.2,0.8231]
[1728833909922,3.0,2447.8,2447.2,0.8231]
[1728833910086,3.0,2447.8,2447.2,1.3281]
[1728833910287,4.68588042,2447.9,2447.2,1.3281]
[1728833910509,5.82510137,2447.9,2447.2,1.3281]
[1728833911235,0.12931253,2447.8,2447.3,0.8231]
[1728833911589,0.197861,2448.0,2447.3,0.8231]
[1728833911847,0.129017,2447.7,2447.3,0.8231]
[1728833911998,0.129017,2447.7,2447.2,0.505]
[1728833911999,1.05254142,2448.0,2447.4,0.55]
[1728833912210,0.129017,2447.6,2447.5,0.7505]
[1728833912405,0.197861,2448.0,2447.5,0.7505]
[1728833912615,0.129017,2447.6,2447.5,0.7505]
[1728833912811,0.197861,2448.0,2447.5,0.7505]
[1728833913310,0.12911793,2447.9,2447.5,0.7505]
[1728833916561,0.12911793,2447.9,2447.6,0.505]
[1728833919275,0.89521793,2447.9,2447.6,0.505]
[1728833919565,0.4615683,2447.8,2447.6,0.505]
[1728833919768,1.31624872,2447.8,2447.6,0.505]
[1728833919926,3.12941347,2447.7,2447.6,0.505]
[1728833920954,0.12941347,2447.7,2447.6,0.505]
[1728833921399,3.85468042,2447.8,2447.6,0.505]
[1728833921673,0.12923326,2447.7,2447.6,0.505]
[1728833921966,4.98739137,2447.8,2447.6,0.505]
[1728833922291,0.12923326,2447.7,2447.6,0.505]
[1728833922499,3.85468042,2447.8,2447.6,0.505]
[1728833922798,0.12923326,2447.7,2447.6,0.505]
[1728833923156,3.85468042,2447.8,2447.6,0.505]
[1728833923453,0.98391368,2447.7,2447.6,0.505]
[1728833923792,0.12923326,2447.7,2447.6,0.505]
[1728833923973,0.98391368,2447.7,2447.6,0.505]
[1728833924172,0.85468042,2447.7,2447.6,0.505]
[1728833924384,0.12924047,2447.7,2447.6,0.505]
[1728833924554,1.40338293,2447.7,2447.6,0.505]
[1728833924759,5.55505522,2447.7,2447.6,0.505]
[1728833925070,5.68412269,2447.7,2447.6,0.505]
[1728833926854,5.17608023,2447.7,2447.6,0.505]
[1728833927058,1.74964011,2447.7,2447.6,0.505]
[1728833927356,0.98354011,2447.7,2447.6,0.505]
[1728833927557,0.98356714,2447.7,2447.6,0.505]
[1728833929101,0.12906747,2447.7,2447.6,0.505]
[1728833929403,4.28091276,2447.8,2447.6,0.505]
[1728833929607,1.40970627,2447.7,2447.6,0.505]
[1728833929973,0.9833929,2447.7,2447.6,0.505]
[1728833930158,0.12879351,2447.7,2447.6,0.505]
[1728833930360,1.40970627,2447.7,2447.6,0.505]
[1728833930555,1.28091276,2447.7,2447.6,0.505]
[1728833930801,1.40970627,2447.7,2447.6,0.505]
[1728833931097,5.89902978,2447.7,2447.6,0.505]
[1728833931303,5.92442217,2447.7,2447.6,0.505]
[1728833932584,7.60366121,2447.7,2447.6,0.505]
[1728833932964,10.4943569,2447.7,2447.6,0.505]
[1728833933176,17.12180002,2447.7,2447.6,0.505]
[1728833933631,15.10902369,2447.7,2447.6,0.505]
[1728833933988,15.10902369,2447.7,2446.3,0.7781]
[1728833933989,3.0,2446.8,2446.3,0.7781]
[1728833934293,0.12864209,2446.7,2446.3,0.7781]
[1728833934518,3.0,2446.8,2446.3,0.7781]
[1728833934716,0.12864209,2446.7,2446.3,0.7781]
[1728833934994,3.0,2446.8,2446.3,0.7781]
[1728833935327,0.12822375,2446.7,2446.3,0.7781]
[1728833935632,0.85343,2446.9,2446.3,0.7781]
[1728833935923,3.85343,2447.0,2446.3,0.7781]
[1728833936082,0.98165375,2446.9,2446.3,0.7781]
[1728833936590,0.12822375,2446.9,2446.3,0.7781]
[1728833941711,4.66393,2447.2,2446.3,0.7781]
[1728833941712,3.8105,2447.2,2446.3,0.7781]
[1728833941892,0.12776213,2447.1,2446.3,0.7781]
[1728833944230,3.0,2447.0,2446.3,0.7781]
[1728833944641,0.12796411,2446.9,2446.3,0.7781]
[1728833947697,3.0,2447.2,2446.3,0.7781]
[1728833947893,0.12784147,2447.1,2446.3,0.7781]
[1728833955044,3.6504455,2447.1,2446.3,0.7781]
[1728833955265,3.52260403,2446.9,2446.3,0.7781]
[1728833955581,3.12794247,2446.8,2446.3,0.7781]
[1728833957955,0.12794247,2446.8,2446.3,0.7781]
[1728833958285,3.0,2447.0,2446.3,0.7781]
[1728833958500,0.12781984,2446.7,2446.3,0.7781]
[1728833958794,0.12769719,2446.9,2446.3,0.7781]
[1728833958955,3.0,2447.2,2446.3,0.7781]
[1728833959149,0.12769719,2446.8,2446.3,0.7781]
[1728833959476,3.0,2447.2,2446.3,0.7781]
[1728833959653,0.12769719,2446.7,2446.3,0.7781]
[1728833959869,3.0,2447.2,2446.3,0.7781]
[1728833960411,0.12769719,2447.1,2446.3,0.7781]
[1728833960711,0.7942,2447.0,2446.3,0.7781]
[1728833960869,1.39381509,2447.0,2446.3,0.7781]
[1728833961073,0.12779098,2446.9,2446.3,0.7781]
[1728833961276,3.12779098,2446.9,2446.3,0.7781]
[1728833962000,3.0,2446.7,2446.3,0.7781]
[1728833962218,3.0,2446.7,2445.8,0.7858]
[1728833962219,3.0,2446.3,2445.8,0.7858]
[1728833962409,3.0,2445.9,2445.8,0.7858]
[1728833962580,3.0,2445.9,2445.7,0.30569198]
[1728833962785,3.12771882,2445.9,2445.7,0.30569198]
[1728833963211,0.12771882,2445.9,2445.7,0.30569198]
[1728833963385,3.0,2446.1,2445.7,0.30569198]
[1728833963709,0.12737968,2445.8,2445.7,0.30569198]
[1728833964162,3.0,2446.1,2445.7,0.30569198]
[1728833964366,0.12737968,2445.8,2445.7,0.30569198]
[1728833964562,3.0,2446.1,2445.7,0.30569198]
[1728833964803,0.12737968,2445.8,2445.7,0.30569198]
[1728833965009,3.0,2446.1,2445.7,0.30569198]
[1728833965307,0.12737968,2445.8,2445.7,0.30569198]
[1728833965508,0.79628644,2446.0,2445.7,0.30569198]
[1728833965714,0.12737968,2445.8,2445.7,0.30569198]
[1728833966208,3.0,2446.1,2445.7,0.30569198]
[1728833966411,0.12737968,2445.8,2445.6,0.7858]
[1728833966610,0.79628644,2446.0,2445.6,0.7858]
[1728833966915,0.12737968,2445.7,2445.6,0.7858]
[1728833967432,3.0,2445.7,2445.1,0.7858]
[1728833967632,3.12662907,2445.7,2445.1,0.7858]
[1728833967837,3.79155238,2445.7,2445.1,0.7858]
[1728833969145,0.12662907,2445.7,2445.2,0.55]
[1728833969325,3.0,2446.3,2445.5,0.7858]
[1728833969640,0.12639084,2446.2,2445.5,0.7858]
[1728833972220,0.87009033,2446.2,2445.5,0.7858]
[1728833973247,0.12639084,2446.2,2445.5,0.7858]
[1728833974918,0.788,2446.4,2445.5,0.7858]
[1728833974919,0.12664352,2446.1,2445.5,0.7858]
[1728833975132,3.0,2446.5,2445.5,0.7858]
[1728833975413,0.12664352,2446.4,2445.5,0.7858]
[1728833975817,0.12664352,2446.4,2445.7,0.7519]
[1728833976048,0.7585,2446.6,2445.7,0.7519]
[1728833976361,4.37603403,2446.8,2445.8,0.55]
[1728833976515,0.12675902,2446.5,2445.9,0.7519]
[1728833976713,5.18818793,2446.8,2445.9,0.7519]
[1728833976914,0.12675902,2446.7,2445.9,0.7519]
[1728833977526,1.61193,2446.9,2445.9,0.7519]
[1728833977527,0.12697555,2446.6,2446.1,0.7805]
[1728833977730,1.64223,2447.1,2446.1,0.7805]
[1728833977940,0.77147345,2447.0,2446.1,0.7805]
[1728833981371,0.12697555,2447.0,2446.1,0.7805]
[1728833983064,3.0,2446.9,2446.1,0.7805]
[1728833983378,3.12741578,2446.9,2446.1,0.7805]
[1728833987691,0.12741578,2446.9,2446.1,0.7805]
[1728833988048,3.85343,2447.1,2446.1,0.7805]
[1728833988256,0.12756731,2446.8,2446.1,0.7805]
[1728833988478,3.85343,2447.1,2446.1,0.7805]
[1728833988682,0.12756731,2446.7,2446.1,0.7805]
[1728833988888,3.85343,2447.1,2446.1,0.7805]
[1728833989053,0.12756731,2446.6,2446.1,0.7805]
[1728833989253,3.0,2446.9,2446.1,0.7805]
[1728833989569,0.12759617,2446.5,2446.1,0.7805]
[1728833989756,3.0,2446.9,2446.1,0.7805]
[1728833990171,0.12761781,2446.8,2446.1,0.7805]
[1728833994875,0.85343,2447.1,2446.1,0.7805]
[1728833995074,0.12763224,2446.7,2446.1,0.7805]
[1728833995380,0.12765827,2446.6,2446.3,0.7681]
[1728833995581,0.12765827,2446.6,2446.5,0.7681]
[1728833995781,0.85343,2447.1,2446.5,0.7681]